bitfinex-derivatives/quotes_ETHF0:USTF0_20250816
["timestamp","ask_amount","ask_price","bid_price","bid_amount"]
[1755339141510,0.45433,4399.0,4398.9,3.1543]
[1755339141705,3.6621,4399.3,4399.0,3.1543]
[1755339141902,0.45433,4399.0,4398.7,25.115]
[1755339142102,0.45433,4399.0,4398.5,3.66217]
[1755339142311,0.45435,4398.8,4398.7,3.1543]
[1755339142610,0.45435,4398.8,4398.7,25.093]
[1755339143111,0.45435,4398.8,4398.5,3.2078]
[1755339143312,0.45435,4398.8,4398.6,25.091]
[1755339143512,0.45435,4398.8,4398.7,25.085]
[1755339143904,1.60865,4398.8,4398.7,25.878]
[1755339144116,3.66645,4398.8,4398.7,25.085]
[1755339144613,1.18385,4398.8,4398.5,3.2078]
[1755339144809,3.2121,4398.7,4398.6,25.083]
[1755339145013,3.2121,4398.7,4398.5,6.3621]
[1755339145314,3.2121,4398.7,4398.6,25.075]
[1755339145710,2.4826,4398.7,4398.6,28.2293]
[1755339146014,0.45434,4398.9,4398.8,3.1543]
[1755339146213,0.45433,4399.0,4398.9,3.1543]
[1755339146609,0.45432,4399.1,4398.9,3.1543]
[1755339146809,0.45433,4399.0,4398.6,25.075]
[1755339147010,0.45432,4399.1,4398.7,0.45436]
[1755339147216,1.1543,4398.8,4398.7,0.793]
[1755339147418,1.1543,4398.8,4398.7,25.061]
[1755339147419,3.2121,4398.8,4398.7,25.061]
[1755339147618,3.2121,4398.8,4398.5,3.2078]
[1755339147619,3.66646,4398.7,4398.5,3.2078]
[1755339147817,0.45436,4398.7,4398.6,25.053]
[1755339148026,0.45436,4398.7,4398.6,28.2073]
[1755339149412,3.66646,4398.7,4398.1,33.8511]
[1755339149619,4.34372,4398.7,4398.2,25.049]
[1755339149811,0.4544,4398.3,4398.1,33.8511]
[1755339150020,2.4826,4398.2,4398.1,35.8993]
[1755339150317,1.1543,4398.2,4398.1,60.9353]
[1755339150719,1.1543,4398.2,4398.1,35.8993]
[1755339150915,1.1543,4398.2,4398.1,60.9333]
[1755339151107,1.1839,4398.3,4398.2,2.0482]
[1755339151108,0.4544,4398.3,4398.2,2.0482]
[1755339151313,3.6665,4398.3,4398.2,25.822]
[1755339151711,1.3283,4398.3,4398.2,28.1833]
[1755339152018,0.45438,4398.5,4398.4,3.1543]
[1755339152612,0.45427,4399.6,4399.4,3.1543]
[1755339152817,1.3283,4400.3,4399.5,25.016]
[1755339153014,0.4542,4400.2,4399.8,0.45424]
[1755339153214,0.45421,4400.1,4399.9,25.014]
[1755339153521,3.2121,4400.0,4399.9,25.014]
[1755339153715,1.3283,4400.4,4399.9,28.1683]
[1755339153913,2.4826,4400.3,4400.0,0.45422]
[1755339154112,0.4542,4400.2,4399.9,25.014]
[1755339154615,2.4826,4400.1,4399.8,0.45424]
[1755339154915,0.7295,4400.1,4399.9,25.004]
[1755339155117,1.1543,4400.0,4399.9,25.797]
[1755339155321,1.1543,4400.0,4399.9,28.1583]
[1755339155712,0.45426,4399.7,4399.4,3.2078]
[1755339155911,1.3283,4399.4,4398.7,0.793]
[1755339156117,2.27114,4400.0,4398.8,24.989]
[1755339156315,2.27114,4400.0,4398.2,1.24741]
[1755339156316,0.45433,4399.0,4398.9,24.989]
[1755339156620,4.34347,4399.6,4399.3,0.793]
[1755339156621,0.45427,4399.6,4399.3,0.793]
[1755339156817,1.1543,4399.5,4399.4,28.1938]
[1755339157020,3.2121,4399.5,4399.4,28.1938]
[1755339157220,4.34327,4400.4,4399.4,28.64808]
[1755339157522,0.4542,4400.2,4399.8,0.45425]
[1755339157721,3.6663,4400.2,4399.9,28.1333]
[1755339157921,1.1543,4400.2,4400.0,3.60852]
[1755339158122,3.66199,4400.4,4399.9,25.43323]
[1755339158422,1.1543,4400.0,4399.9,24.979]
[1755339158619,3.2121,4400.0,4399.6,0.45427]
[1755339158820,0.45423,4399.9,4399.7,28.1243]
[1755339159122,0.45423,4399.9,4399.8,27.0172]
[1755339159414,0.45426,4399.7,4399.4,3.2078]
[1755339159620,3.2121,4399.6,4399.5,24.967]
[1755339160212,0.45424,4399.9,4399.5,24.967]
[1755339160421,0.45426,4399.7,4399.6,3.1543]
[1755339161622,0.45425,4399.8,4399.6,3.1543]
[1755339161823,0.45425,4399.8,4399.7,3.1543]
[1755339162320,6.4199,4400.4,4399.7,3.1543]
[1755339162523,6.4199,4400.4,4399.7,3.60855]
[1755339162823,0.45422,4400.1,4399.7,2.3613]
[1755339163027,0.45424,4399.9,4399.5,25.42127]
[1755339163225,0.45426,4399.7,4399.5,24.967]
[1755339163623,0.45425,4399.8,4399.6,2.3613]
[1755339163927,0.45425,4399.8,4399.7,0.793]
[1755339164125,0.45425,4399.8,4399.7,3.1543]
[1755339164823,1.60855,4399.8,4399.7,3.1543]
[1755339165425,3.66635,4399.8,4399.7,26.9792]
[1755339165830,3.2121,4399.5,4399.4,3.2078]
[1755339166124,3.2121,4399.5,4399.4,28.1268]
[1755339166625,3.2121,4399.5,4399.4,24.919]
[1755339167220,0.45427,4399.6,4399.4,31.2811]
[1755339167526,0.45427,4399.6,4399.5,3.1543]
[1755339167921,1.60857,4399.6,4399.5,3.1543]
[1755339168120,3.66637,4399.6,4399.5,28.0533]
[1755339168424,3.66637,4399.6,4399.5,24.895]
[1755339169124,3.1512,4399.5,4399.4,3.2078]
[1755339169325,3.1512,4399.5,4399.4,28.0978]
[1755339169622,3.1512,4399.5,4399.4,3.2078]
[1755339169826,3.1512,4399.5,4399.4,28.8151]
[1755339170126,0.45427,4399.6,4399.4,28.8151]
[1755339170127,0.45427,4399.6,4399.5,3.0831]
[1755339170326,3.1512,4399.5,4399.4,28.0938]
[1755339170530,3.1512,4399.5,4399.4,28.0918]
[1755339170729,3.1512,4399.5,4399.4,31.1749]
[1755339171629,2.3836,4399.5,4399.4,31.1749]
[1755339171824,0.45426,4399.7,4399.6,3.0831]
[1755339172328,0.7676,4400.3,4399.8,2.3618]
[1755339172529,3.2078,4400.4,4399.9,24.865]
[1755339172730,0.45423,4400.0,4399.9,24.865]
[1755339172920,0.45423,4400.0,4399.9,27.9481]
[1755339177631,0.45423,4400.0,4399.9,3.0831]
[1755339177827,3.2078,4400.4,4400.0,3.0831]
[1755339178024,1.13526,4401.2,4400.0,1.9756]
[1755339178223,0.7676,4401.2,4400.4,3.2078]
[1755339178429,1.1166,4401.0,4400.5,24.82]
[1755339178636,3.1512,4401.2,4400.5,24.82]
[1755339178833,0.7676,4401.1,4400.6,24.818]
[1755339179132,3.1512,4400.9,4400.6,24.818]
[1755339179332,1.267,4400.8,4400.6,24.818]
[1755339179533,0.7676,4400.5,4399.9,3.2078]
[1755339179724,1.267,4400.4,4400.0,24.811]
[1755339179924,2.0346,4400.4,4400.0,24.811]
[1755339180132,0.7676,4400.7,4400.0,24.811]
[1755339180431,0.7676,4401.2,4400.4,3.2078]
[1755339180625,0.7676,4401.2,4400.5,24.804]
[1755339180626,0.45416,4400.7,4400.5,24.804]
[1755339181037,1.22176,4400.7,4400.5,24.804]
[1755339181230,0.45416,4400.7,4400.5,24.804]
[1755339181530,0.7676,4400.5,4400.4,3.2078]
[1755339181728,3.1512,4400.5,4400.4,28.0038]
[1755339182126,3.1512,4400.5,4400.4,3.2078]
[1755339182333,3.1512,4400.5,4400.4,27.9968]
[1755339182732,0.7676,4400.5,4400.4,27.9968]
[1755339183035,2.0346,4400.5,4400.4,27.9968]
[1755339184341,0.7676,4400.5,4400.4,27.9968]
[1755339184634,2.0346,4400.5,4400.4,27.9968]
[1755339188936,3.1512,4400.5,4400.4,27.9968]
[1755339189333,3.1512,4400.5,4400.4,27.9468]
[1755339189732,3.1512,4400.5,4400.4,3.2078]
[1755339189933,3.1512,4400.5,4400.4,27.9388]
[1755339193931,5.2746,4400.5,4400.4,27.9388]
[1755339194537,0.7676,4400.5,4400.4,27.9388]
[1755339194741,2.0346,4400.5,4400.4,27.9388]
[1755339194942,2.5295,4400.5,4400.4,27.9388]
[1755339195243,4.158,4400.5,4400.4,27.9388]
[1755339195738,5.2746,4400.5,4400.4,27.9388]
[1755339199742,4.158,4400.5,4400.4,27.9417]
[1755339200134,0.45417,4400.6,4400.5,0.0103]
[1755339200534,1.21087,4400.6,4400.5,0.0103]
[1755339201343,4.60787,4400.6,4400.5,0.0103]
[1755339201542,4.60787,4400.6,4400.4,27.9388]
[1755339201543,5.70267,4400.6,4400.4,3.2078]
[1755339201731,3.1209,4399.9,4399.7,32.728]
[1755339201935,5.2485,4399.8,4399.7,32.728]
[1755339202342,5.2485,4399.8,4399.7,57.357]
[1755339203333,5.2485,4399.8,4399.7,32.728]
[1755339203538,5.2485,4399.8,4399.7,57.347]
[1755339205240,5.2485,4399.8,4399.7,58.4317]
[1755339205643,5.2485,4399.8,4399.7,33.8127]
[1755339205842,5.2485,4399.8,4399.7,58.4147]
[1755339206444,5.2485,4399.8,4399.7,57.33]
[1755339207550,5.2485,4399.8,4399.7,58.4176]
[1755339207746,4.1537,4399.8,4399.7,58.4176]
[1755339208349,5.2485,4399.8,4399.7,58.4176]
[1755339209448,0.7567,4399.8,4399.7,58.4176]
[1755339209648,2.5141,4399.8,4399.7,58.4176]
[1755339210243,3.3831,4399.8,4399.7,58.3826]
[1755339211638,3.67661,4400.3,4400.2,0.7492]
[1755339211847,3.67661,4400.3,4400.2,29.5883]
[1755339212248,5.2485,4400.3,4400.2,29.5912]
[1755339212748,4.1537,4400.3,4400.2,29.5912]
[1755339213150,1.2447,4400.3,4400.2,30.04541]
[1755339213346,1.6989,4400.3,4400.2,29.5912]
[1755339213545,4.6079,4400.3,4400.2,29.5912]
[1755339214345,5.7027,4400.3,4400.2,29.5912]
[1755339215148,5.7027,4400.3,4400.2,29.5883]
[1755339216443,0.4542,4400.3,4400.2,29.5883]
[1755339216646,5.68805,4400.8,4400.7,0.7521]
[1755339216847,7.97760681,4400.8,4400.7,26.3618]
[1755339217048,9.07240681,4400.8,4400.7,26.3618]
[1755339217245,9.07240681,4400.8,4400.7,25.2715]
[1755339217446,9.07240681,4400.8,4400.7,25.2668]
[1755339221854,9.07240681,4400.8,4400.7,26.3515]
[1755339224751,9.07240681,4400.8,4400.7,26.3542]
[1755339225256,9.07240681,4400.8,4400.7,26.3618]
[1755339226252,7.97760681,4400.8,4400.7,26.3618]
[1755339226452,8.91045,4400.8,4400.7,26.3618]
[1755339226654,8.91045,4400.8,4400.7,26.3589]
[1755339226854,5.7027,4400.3,4400.2,3.2078]
[1755339227150,2.58186,4399.8,4399.7,32.728]
[1755339227356,5.70276,4399.8,4399.7,57.155]
[1755339228056,3.1209,4399.7,4398.9,3.2078]
[1755339228260,5.2485,4399.0,4398.9,3.2078]
[1755339228655,5.2485,4399.0,4398.9,27.6218]
[1755339229252,5.2485,4399.0,4398.9,28.744]
[1755339229652,5.2485,4399.0,4398.9,27.6218]
[1755339230561,5.2485,4399.0,4398.9,28.744]
[1755339231059,5.2485,4399.0,4398.9,27.6218]
[1755339232159,5.2485,4399.0,4398.9,28.744]
[1755339232953,3.3831,4399.0,4398.9,29.5189]
[1755339233158,5.2984,4399.0,4398.9,3.2078]
[1755339233458,5.2984,4399.0,4398.9,27.5858]
[1755339233856,3.109,4398.9,4398.4,3.2078]
[1755339234055,4.1456,4398.1,4398.0,32.722]
[1755339234250,5.2751,4398.1,4398.0,23.037]
[1755339236854,5.72954,4398.1,4398.0,23.037]
[1755339237152,3.86294,4398.1,4397.8,3.2078]
[1755339237358,5.2751,4397.9,4397.8,3.2078]
[1755339237558,5.2751,4397.9,4397.8,27.5548]
[1755339237757,5.2751,4397.9,4397.8,28.8103]
[1755339238259,5.2751,4397.9,4397.8,29.9325]
[1755339238563,5.2751,4397.9,4397.8,28.677]
[1755339239661,5.2751,4397.9,4397.8,3.2078]
[1755339239857,4.60012,4397.4,4397.3,8.41]
[1755339240058,1.13607,4398.3,4397.5,3.6071]
[1755339240363,3.2078,4399.5,4398.7,2.8245]
[1755339240569,5.3739,4399.5,4399.4,5.2022]
[1755339240864,3.2078,4399.5,4399.4,29.5252]
[1755339241258,5.3739,4399.5,4399.4,29.5212]
[1755339241557,4.5881,4399.5,4399.4,29.5212]
[1755339241758,5.3739,4399.5,4399.4,29.5212]
[1755339242160,3.2078,4399.5,4399.4,29.5212]
[1755339242462,0.7371,4399.4,4398.8,3.2078]
[1755339242659,6.6163,4399.5,4399.4,5.2022]
[1755339242862,8.4829,4399.5,4399.4,24.307]
[1755339243068,5.3739,4399.5,4399.4,24.304]
[1755339243460,3.7045,4399.5,4399.4,29.5062]
[1755339243766,5.3739,4399.5,4399.4,29.5062]
[1755339243968,6.111,4399.5,4399.4,29.5062]
[1755339244264,8.4829,4399.5,4399.4,29.5062]
[1755339244464,7.3534,4399.5,4399.4,29.5062]
[1755339244666,3.2078,4399.5,4399.4,29.5062]
[1755339246461,0.7371,4399.3,4397.5,3.2078]
[1755339246659,3.2078,4399.5,4396.1,0.10236229]
[1755339246660,1.8666,4397.9,4396.1,0.10236229]
[1755339246963,3.2078,4396.7,4396.1,16.67236229]
[1755339247159,3.2078,4396.7,4396.2,3.1526]
[1755339247366,4.3373,4397.3,4396.3,3.2078]
[1755339247567,4.3373,4397.3,4396.6,2.0304]
[1755339247761,4.3373,4397.3,4396.7,24.268]
[1755339248068,0.45458,4396.8,4396.7,24.268]
[1755339248262,0.45458,4396.8,4396.7,27.4206]
[1755339249065,0.45456,4397.0,4396.8,3.1526]
[1755339249261,0.45456,4397.0,4396.9,30.6124]
[1755339250261,0.45451,4397.4,4397.1,3.1526]
[1755339250465,1.1295,4398.0,4397.4,2.0304]
[1755339250466,0.4545,4397.6,4397.4,2.0304]
[1755339250667,0.4545,4397.6,4397.5,30.6034]
[1755339251063,1.1295,4398.4,4397.6,3.1526]
[1755339251365,3.2078,4398.6,4398.0,4.33]
[1755339251568,1.1295,4399.2,4398.4,1.1222]
[1755339251868,0.45434,4399.1,4398.6,3.1526]
[1755339252070,0.45433,4399.2,4398.8,3.1526]
[1755339252269,0.45433,4399.2,4398.9,0.7749]
[1755339252570,3.2078,4399.3,4399.1,3.1526]
[1755339252868,3.2078,4399.3,4399.2,27.3866]
[1755339253074,3.2078,4399.3,4399.2,27.3826]
[1755339253571,3.2078,4399.3,4399.2,27.3756]
[1755339255367,3.2078,4399.3,4399.2,3.1526]
[1755339255872,3.2078,4399.3,4399.2,27.3596]
[1755339256376,4.3373,4399.3,4399.2,3.1526]
[1755339256574,4.3373,4399.3,4399.2,27.3526]
[1755339257072,4.3373,4399.3,4399.2,26.2304]
[1755339257268,3.2078,4399.3,4399.2,24.199]
[1755339257469,5.52872,4399.3,4399.2,24.199]
[1755339258072,0.45438,4398.7,4398.6,3.1526]
[1755339258272,0.45438,4398.7,4398.6,27.3396]
[1755339263975,0.45438,4398.7,4398.0,2.59539]
[1755339263976,0.45444,4398.1,4398.0,2.59539]
[1755339264275,1.068,4397.8,4397.6,24.141]
[1755339264482,0.45447,4397.9,4397.8,2.3822]
[1755339264680,1.52247,4397.9,4397.8,3.1044]
[1755339264973,0.7879,4397.8,4397.3,24.137]
[1755339265170,3.9957,4397.6,4397.3,24.137]
[1755339265376,1.8559,4397.5,4397.3,24.132]
[1755339265574,3.2078,4397.6,4397.3,24.132]
[1755339265780,0.7879,4397.5,4397.3,24.132]
[1755339265980,3.2078,4397.6,4397.4,1.9958]
[1755339266280,3.9957,4397.6,4397.4,1.9958]
[1755339266577,1.068,4397.5,4397.4,1.9958]
[1755339267379,1.8559,4397.5,4397.2,1.9958]
[1755339267573,1.8559,4397.4,4397.3,24.12]
[1755339267774,1.8559,4397.4,4397.0,4.3164]
[1755339267975,3.2078,4398.1,4397.5,2.4503]
[1755339268273,1.068,4398.0,4397.8,1.9958]
[1755339268477,0.5384,4398.1,4397.9,26.1118]
[1755339268676,3.2078,4398.8,4398.1,3.1044]
[1755339268884,3.2078,4398.8,4398.3,3.1044]
[1755339269179,3.1254,4398.6,4398.4,24.8352]
[1755339269380,3.2078,4399.6,4398.5,24.8352]
[1755339269577,3.2078,4398.8,4398.2,1.1086]
[1755339269785,3.9957,4398.8,4398.6,0.7222]
[1755339270085,3.2078,4398.8,4398.3,24.8312]
[1755339270376,3.2078,4398.8,4398.4,0.7222]
[1755339270377,2.3375,4398.5,4398.4,0.7222]
[1755339270683,2.3375,4398.5,4398.4,27.2094]
[1755339270984,2.3375,4398.5,4398.4,27.2044]
[1755339272176,2.3375,4398.5,4398.4,25.9308]
[1755339272378,1.068,4398.6,4398.1,0.7222]
[1755339272578,0.45446,4397.9,4397.8,3.2078]
[1755339272882,3.57986,4397.9,4397.8,24.086]
[1755339273875,0.45451,4397.4,4397.3,33.4592]
[1755339274076,0.45451,4397.4,4397.3,59.9184]
[1755339275182,2.79201,4397.4,4397.3,59.9184]
[1755339275379,0.45451,4397.5,4397.3,59.9184]
[1755339275585,1.13602,4398.5,4394.8,7.22673678]
[1755339275586,1.13633,4397.3,4394.8,7.22673678]
[1755339275776,1.52264,4396.2,4395.5,16.506]
[1755339275981,1.52264,4396.2,4395.9,0.7222]
[1755339276280,1.52264,4396.2,4396.1,26.16216229]
[1755339277589,1.52264,4396.2,4396.1,27.27076229]
[1755339280182,3.2078,4396.3,4396.1,27.27076229]
[1755339280388,3.2078,4396.3,4396.2,3.1044]
[1755339281390,3.2078,4397.8,4396.4,1.2736]
[1755339281585,0.16168714,4397.7,4397.6,1.024]
[1755339281786,1.068,4398.3,4397.7,1.9958]
[1755339281990,4.8397,4398.8,4397.8,3.2078]
[1755339282190,1.068,4398.1,4398.0,1.9958]
[1755339282387,1.912,4398.1,4398.0,26.0268]
[1755339282587,1.912,4398.1,4398.0,24.7532]
[1755339282883,1.8559,4397.9,4397.6,24.031]
[1755339283094,1.912,4398.0,4396.8,4.4814]
[1755339283288,0.4989,4396.9,4394.9,0.45477]
[1755339283488,3.7067,4396.2,4395.1,1.2736]
[1755339283684,0.3966,4396.1,4395.3,0.7222]
[1755339283996,3.6044,4395.4,4395.3,0.7222]
[1755339284291,3.6044,4395.4,4395.3,26.0148]
[1755339284490,3.2078,4395.4,4395.3,27.1234]
[1755339285195,3.6044,4395.4,4395.3,27.1234]
[1755339285392,3.2078,4395.4,4395.3,27.1234]
[1755339286095,0.3966,4395.9,4395.3,27.1234]
[1755339286390,0.3966,4395.9,4395.4,2.3822]
[1755339286594,0.3966,4395.9,4395.5,0.7222]
[1755339286895,3.2078,4396.0,4395.3,24.019]
[1755339286896,0.3966,4395.8,4395.7,1.9958]
[1755339287089,0.3966,4395.8,4395.7,3.1044]
[1755339287684,0.3966,4395.8,4395.7,0.7222]
[1755339287896,3.6044,4396.0,4395.5,1.1086]
[1755339288094,0.3966,4395.9,4395.7,1.9958]
[1755339288393,0.3966,4395.9,4395.8,24.7182]
[1755339288692,3.2078,4396.0,4395.8,23.996]
[1755339288893,3.2078,4396.0,4395.9,3.1217]
[1755339289094,3.2078,4396.0,4395.9,1.9423]
[1755339289095,3.6616,4396.0,4395.9,1.9423]
[1755339290092,3.2087,4396.0,4394.9,0.7302]
[1755339290297,0.4529,4395.4,4395.3,1.9423]
[1755339290499,0.4529,4395.4,4395.3,25.9293]
[1755339290999,0.90762,4395.4,4395.3,25.9293]
[1755339291193,0.90762,4395.4,4395.3,27.1087]
[1755339292697,0.90852,4395.4,4395.3,0.7302]
[1755339292997,0.90852,4395.4,4395.3,24.7032]
[1755339293496,0.4538,4395.3,4395.1,23.97]
[1755339293795,0.90765,4395.1,4394.8,23.968]
[1755339293994,3.6616,4394.9,4394.8,23.968]
[1755339295202,3.6607,4394.9,4394.8,27.0897]
[1755339295396,3.2078,4394.9,4394.8,27.0897]
[1755339296096,3.2078,4394.9,4394.8,3.1217]
[1755339296401,3.2078,4394.9,4394.8,27.0777]
[1755339297896,3.2078,4394.9,4394.8,23.956]
[1755339298102,3.2078,4394.9,4394.8,27.0777]
[1755339299306,1.1966,4394.9,4394.8,27.0777]
[1755339300299,3.66253,4395.3,4394.9,2.84627]
[1755339300493,3.66253,4395.3,4394.8,24.41078]
[1755339300694,3.66253,4395.3,4394.9,3.1217]
[1755339300895,3.2078,4395.3,4395.1,1.2121]
[1755339301094,0.45474,4395.2,4394.9,1.2121]
[1755339301293,0.45474,4395.2,4395.1,1.2121]
[1755339301497,1.64894,4395.2,4395.1,1.9423]
[1755339301703,2.84647,4394.9,4394.8,0.7302]
[1755339302100,2.84647,4394.9,4394.8,24.6552]
[1755339302301,2.84647,4394.9,4394.8,25.8673]
[1755339302505,2.84647,4394.9,4394.8,27.0467]
[1755339302802,0.45477,4394.9,4394.8,27.0467]
[1755339302995,3.2078,4395.8,4395.1,0.45474]
[1755339303200,0.45471,4395.5,4395.3,1.9423]
[1755339303401,0.45471,4395.5,4395.4,25.8593]
[1755339303796,0.45471,4395.5,4395.4,27.0387]
[1755339304198,3.2078,4395.8,4395.6,0.4547]
[1755339304400,3.2078,4395.8,4395.7,3.1217]
[1755339304602,0.45463,4396.3,4395.4,27.1248]
[1755339304906,0.45467,4395.9,4395.6,3.1217]
[1755339305100,0.45467,4395.9,4395.7,3.1217]
[1755339305299,3.2078,4396.4,4396.2,1.2121]
[1755339305498,3.2078,4396.4,4396.3,27.0267]
[1755339305700,3.2078,4397.5,4397.1,2.845]
[1755339305903,0.4545,4397.6,4397.1,29.9558]
[1755339306202,0.45442,4398.4,4397.2,2.845]
[1755339306395,2.4307,4398.7,4397.9,2.845]
[1755339306600,2.4307,4398.7,4398.1,1.9096]
[1755339306801,1.69089,4398.6,4398.3,2.1148]
[1755339307005,0.45439,4398.6,4398.5,1.9096]
[1755339307200,0.45439,4398.6,4398.5,0.7302]
[1755339307499,0.45439,4398.6,4398.5,2.845]
[1755339307907,2.4307,4398.5,4398.4,24.6262]
[1755339308297,2.4307,4398.5,4398.4,25.8056]
[1755339308695,1.6486,4398.5,4398.4,23.884]
[1755339308905,1.6486,4398.5,4398.4,25.7936]
[1755339309405,0.4544,4398.5,4398.4,25.7936]
[1755339309606,1.6909,4398.5,4398.4,25.7936]
[1755339310102,2.8851,4398.5,4398.4,24.6142]
[1755339313603,0.4544,4398.5,4398.4,24.6142]
[1755339313902,0.4544,4398.5,4398.4,26.729]
[1755339315208,1.6909,4398.5,4398.4,26.729]
[1755339315514,3.6222,4398.5,4398.4,24.5632]
[1755339316104,2.8851,4398.5,4398.4,24.5632]
[1755339316504,2.8851,4398.5,4398.4,25.7426]
[1755339317005,2.8851,4398.5,4398.4,24.5632]
[1755339317205,3.6222,4398.5,4398.4,24.5632]
[1755339317409,3.6222,4398.5,4398.4,23.833]
[1755339318111,2.8851,4398.5,4398.4,24.5632]
[1755339318415,1.6909,4398.5,4398.4,25.7426]
[1755339318908,1.6909,4398.5,4398.4,26.6769]
[1755339319312,1.6909,4398.5,4398.4,24.5632]
[1755339319507,2.8745,4398.5,4398.4,25.7253]
[1755339319712,1.6909,4398.5,4398.4,26.6596]
[1755339319912,2.8745,4398.5,4398.4,25.7253]
[1755339320722,2.8745,4398.5,4398.4,26.6596]
[1755339320919,2.8745,4398.5,4398.4,24.6281]
[1755339321716,0.45446,4397.9,4392.4,0.7951]
[1755339321916,3.2078,4397.3,4395.7,0.7951]
[1755339322117,0.9411,4396.3,4395.7,24.5841]
[1755339322317,3.2078,4396.5,4395.7,23.789]
[1755339322516,33.491,4398.7,4396.3,2.0903]
[1755339322820,3.2078,4397.2,4395.6,3.2078]
[1755339323019,2.1247,4396.2,4395.6,1.2952]
[1755339323418,1.9326,4396.2,4396.1,1.39756229]
[1755339324022,2.1247,4396.2,4396.1,0.10236229]
[1755339325323,2.1247,4396.2,4396.1,1.39756229]
[1755339325920,1.9326,4396.2,4396.1,1.39756229]
[1755339326115,3.2078,4396.3,4396.1,0.10236229]
[1755339326320,3.2078,4396.3,4396.2,3.2524]
[1755339326822,3.2078,4396.3,4396.1,0.10236229]
[1755339326823,0.749,4396.7,4396.4,0.7951]
[1755339327022,3.2078,4397.2,4396.5,0.7951]
[1755339327325,3.2078,4397.2,4396.8,2.4573]
[1755339327518,3.2078,4397.2,4397.0,3.2524]
[1755339327735,3.2078,4397.2,4397.1,25.7212]
[1755339327924,3.2078,4397.2,4397.1,27.0164]
[1755339328226,3.2078,4398.2,4397.2,3.2524]
[1755339328420,3.2078,4398.2,4397.4,0.45451]
[1755339328620,34.6796,4400.1,4397.7,2.4573]
[1755339328826,3.2078,4398.7,4397.9,3.2524]
[1755339329123,3.2078,4398.7,4397.7,3.2078]
[1755339329124,3.137,4398.6,4397.7,3.2078]
[1755339329326,0.45447,4397.8,4397.7,3.2078]
[1755339329522,1.65887,4397.8,4397.7,3.2078]
[1755339329723,3.59147,4397.8,4397.7,3.2078]
[1755339329923,3.59147,4397.8,4397.7,6.4602]
[1755339330528,3.59147,4397.8,4397.7,30.2152]
[1755339330923,3.59147,4397.8,4397.7,28.1249]
[1755339331122,0.45447,4397.8,4397.7,30.2152]
[1755339331427,0.45446,4398.0,4397.9,2.0903]
[1755339331730,0.45446,4398.0,4397.9,3.2524]
[1755339332023,3.137,4397.8,4397.7,3.2078]
[1755339332721,3.2078,4398.2,4396.8,3.2078]
[1755339332927,0.749,4397.9,4397.3,3.2078]
[1755339333122,3.2078,4398.2,4397.3,3.2078]
[1755339333327,3.137,4398.1,4397.3,26.9438]
[1755339333524,0.749,4397.9,4397.3,26.9438]
[1755339333725,3.137,4398.1,4397.3,26.9438]
[1755339333925,1.1836,4398.1,4397.3,26.9438]
[1755339334130,1.9534,4398.0,4397.3,23.736]
[1755339334328,1.9534,4398.0,4397.3,26.9438]
[1755339334629,1.9534,4398.0,4397.4,3.2524]
[1755339334829,1.9534,4398.0,4397.4,3.70691]
[1755339335032,1.9534,4398.0,4397.5,1.1621]
[1755339335228,1.9534,4398.0,4397.6,3.2524]
[1755339335423,3.137,4398.4,4397.8,1.1621]
[1755339335622,1.2044,4398.8,4398.0,3.2524]
[1755339336433,0.749,4398.7,4398.0,3.2524]
[1755339337428,2.388,4398.6,4397.9,3.2078]
[1755339337729,0.749,4398.1,4397.8,23.714]
[1755339338029,3.137,4397.9,4397.5,23.714]
[1755339338233,3.2078,4398.2,4397.5,23.714]
[1755339338429,3.2078,4398.9,4397.5,25.0092]
[1755339338627,3.137,4397.9,4397.6,1.1621]
[1755339338822,3.137,4397.8,4397.6,3.2524]
[1755339339034,33.92418491,4400.1,4397.6,1.9572]
[1755339339035,3.137,4397.7,4397.6,1.9572]
[1755339339333,3.2078,4398.4,4397.5,23.714]
[1755339339533,3.137,4397.6,4397.5,23.714]
[1755339339833,3.137,4397.6,4397.5,26.9664]
[1755339340132,3.137,4397.6,4397.5,23.714]
[1755339341235,3.137,4397.6,3080.1,8.771]
[1755339341236,0.45453,4397.2,4396.9,23.698]
[1755339341434,0.45456,4397.0,4396.9,25.6552]
[1755339341633,0.45453,4397.3,4397.0,0.7951]
[1755339341835,1.13619,4397.8,4396.9,27.36036]
[1755339342136,1.13607,4398.3,4397.7,1.9572]
[1755339342331,1.13607,4398.3,4397.9,3.2524]
[1755339342637,1.13607,4398.3,4397.8,23.686]
[1755339342839,3.137,4398.0,4397.8,23.686]
[1755339343026,3.137,4397.9,4397.8,23.686]
[1755339343934,3.137,4397.9,4397.8,23.682]
[1755339344430,1.9534,4397.9,4397.8,24.8441]
[1755339344636,4.27307,4398.3,4397.8,24.9772]
[1755339344835,3.2078,4398.6,4398.0,1.1621]
[1755339345137,0.16187911,4398.5,4398.1,1.9572]
[1755339345337,1.2044,4398.2,4397.8,23.682]
[1755339345537,6.3448,4398.6,4397.9,3.2524]
[1755339345836,1.1836,4398.3,4397.5,3.2524]